fUSD/lending_fUSD_20240118
["ID","MTS","AMOUNT","RATE_DAILY","PERIOD"]
[312069108,1705595446498,-58000.0,0.00027373,2]
[312069110,1705595446508,-169537.14768874,0.00027381,3]
[312069119,1705595489900,2000.0,0.00021154,2]
[312069120,1705595489922,544.15825343,0.00021154,2]
[312069121,1705595511787,364.5612,0.000218,2]
[312069122,1705595515186,443.2957,0.000218,2]
[312069123,1705595529138,1000.0,0.000218,2]
[312069130,1705595541310,155.0,0.00020536,2]
[312069134,1705595559283,155.0,0.0002,2]
[312069136,1705595579298,155.75403448,0.0002,2]
[312069139,1705595703609,1726.38906552,0.00020921,2]
[312069140,1705595703632,3192.1431,0.00020921,2]
[312069141,1705595703656,81.46783448,0.00020921,2]
[312069146,1705595765159,1761.56833002,0.0001865,2]
[312069160,1705596068069,500.0,0.0002418,30]
[312069161,1705596068520,500.0,0.0002418,30]
[312069162,1705596068922,500.0,0.0002418,30]
[312069163,1705596069384,500.0,0.0002418,30]
[312069164,1705596069825,500.0,0.0002418,30]
[312069165,1705596070388,500.0,0.0002418,30]
[312069166,1705596071203,444.47046662,0.0002418,30]
[312069168,1705596102154,154.10195709,0.00021785,2]
[312069173,1705596163421,1195.00497841,0.00021785,2]
[312069174,1705596163448,1192.1431,0.00021785,2]
[312069175,1705596163470,2000.0,0.00021785,2]
[312069178,1705596172185,1455.84174657,0.00021567,2]
[312069179,1705596172206,720.78272671,0.00021567,2]
[312069180,1705596177136,401.90417909,0.00021131,2]
[312069181,1705596197125,401.60215391,0.00021131,2]
[312069182,1705596207639,155.0,0.00021131,2]
[312069183,1705596207673,159.12557702,0.00021131,2]
[312069184,1705596212818,161.58536327,0.00021131,2]
[312069185,1705596212857,121.65313433,0.00021131,2]
[312069186,1705596212895,155.0,0.00021131,2]
[312069187,1705596214064,1723.34686567,0.00021131,2]
[312069188,1705596214095,4361.42541454,0.00021131,2]
[312069189,1705596214183,2177.59399029,0.0002092,2]
[312069190,1705596215737,532.50464613,0.00021131,2]
[312069191,1705596216476,155.0,0.00021131,2]
[312069192,1705596216690,1097.74494293,0.00021131,2]
[312069193,1705596217492,156.80011128,0.00021131,2]
[312069194,1705596219458,543.89806023,0.00021131,2]
[312069195,1705596220672,220.45,0.00019723,2]
[312069196,1705596221735,500.0,0.00021131,2]
[312069197,1705596221891,155.0,0.00021131,2]
[312069198,1705596221922,28342.88512147,0.00021131,2]
[312069199,1705596221944,22225.05692298,0.00021131,2]
[312069200,1705596222862,5192.23869408,0.00021131,2]
[312069202,1705596223658,282.80136825,0.00021131,2]
[312069203,1705596224810,885.29825043,0.00021131,2]
[312069204,1705596225138,155.0,0.00021131,2]
[312069205,1705596225185,1023.16938812,0.00021131,2]
[312069206,1705596225221,18948.40984176,0.00021131,2]
[312069207,1705596226197,155.0,0.00021131,2]
[312069208,1705596227634,155.0,0.00021131,2]
[312069209,1705596228042,1033.55267706,0.00021131,2]
[312069210,1705596228836,155.0,0.00021131,2]
[312069216,1705596230067,6084.77228021,0.00021131,2]
[312069217,1705596231449,156.80011128,0.00021131,2]
[312069218,1705596231935,532.50464613,0.00021131,2]
[312069219,1705596232832,283.2384976,0.00021131,2]
[312069220,1705596233869,153.53602793,0.00021576,2]
[312069221,1705596234183,2177.59399029,0.0002092,2]
[312069222,1705596234479,256.35859941,0.00021131,2]
[312069223,1705596234707,1097.74494293,0.00021131,2]
[312069224,1705596235729,500.0,0.00021131,2]
[312069225,1705596236296,284.29206888,0.00021131,2]
[312069226,1705596236870,1232.29118903,0.00021131,2]
[312069227,1705596237419,543.89806023,0.00021131,2]
[312069228,1705596237950,50567.94204445,0.00021131,2]
[312069229,1705596238219,1915.18587891,0.0002113,2]
[312069230,1705596240172,155.0,0.00021131,2]
[312069231,1705596240216,155.60662019,0.00021131,2]
[312069232,1705596241665,281.22439849,0.00021131,2]
[312069233,1705596243148,256.75315191,0.00021131,2]
[312069234,1705596243188,1020.04958948,0.00021131,2]
[312069235,1705596245224,18948.40984176,0.00021131,2]
[312069236,1705596246061,1033.55267706,0.00021131,2]
[312069237,1705596246089,6056.44007546,0.00021131,2]
[312069238,1705596247736,532.50464613,0.00021131,2]
[312069239,1705596248294,155.0,0.00021131,2]
[312069240,1705596248815,885.29825043,0.00021131,2]
[312069241,1705596249687,1892.88295925,0.00021131,2]
[312069242,1705596250843,266.6500919,0.00021131,2]
[312069243,1705596251430,156.07894035,0.00021131,2]
[312069244,1705596251719,500.0,0.00021131,2]
[312069245,1705596252037,609.5088436,0.00021131,2]
[312069246,1705596252816,283.2384976,0.00021131,2]
[312069247,1705596254295,284.29206888,0.00021131,2]
[312069248,1705596254694,1097.74494293,0.00021131,2]
[312069249,1705596255907,271.47245247,0.00021131,2]
[312069250,1705596255932,50567.94204445,0.00021131,2]
[312069251,1705596259423,542.64150318,0.00021131,2]
[312069252,1705596264803,881.33080258,0.00021131,2]
[312069253,1705596265669,1892.88295925,0.00021131,2]
[312069254,1705596265730,251.33642847,0.00021131,2]
[312069255,1705596265759,532.50464613,0.00021131,2]
[312069256,1705596267724,500.0,0.00021131,2]
[312069257,1705596268064,1033.55267706,0.00021131,2]
[312069258,1705596269904,155.0,0.00021131,2]
[312069259,1705596270188,2179.43549228,0.0002092,2]
[312069260,1705596270816,281.43582092,0.00021131,2]
[312069261,1705596273992,50567.94204445,0.00021131,2]
[312069262,1705596274691,1090.87374837,0.00021131,2]
[312069263,1705596278308,284.29206888,0.00021131,2]
[312069264,1705596281782,629.32866484,0.00021131,2]
[312069265,1705596285734,500.0,0.00021131,2]
[312069266,1705596288198,1826.36592187,0.0002092,2]
[312069267,1705596290034,609.5088436,0.00021131,2]
[312069268,1705596290063,489.86172574,0.00021131,2]
[312069269,1705596293920,25003.67389032,0.00021131,2]
[312069270,1705596296334,170.69081963,0.00021131,2]
[312069271,1705596299376,155.0,0.0002,2]
[312069272,1705596299688,188.41022636,0.00021131,2]
[312069273,1705596303797,500.0,0.00021131,2]
[312069274,1705596308044,338.05454542,0.00021131,2]
[312069276,1705596318935,158.3,0.00021267,2]
[312069277,1705596319372,155.0,0.0002,2]
[312069278,1705596323728,500.0,0.00021131,2]
[312069279,1705596333557,155.0,0.0002,2]
[312069280,1705596359380,168.24423955,0.0002,2]
[312069293,1705596518329,300.0,0.0002153,2]
[312069294,1705596543308,153.53602793,0.00021561,2]
[312069300,1705596598934,151.39,0.00021382,2]
[312069361,1705596633498,-157.58541762,0.00021652,2]
[312069362,1705596633512,-153.53602793,0.00021653,2]
[312069363,1705596633525,-134.4023727,0.00021655,2]
[312069364,1705596633539,-1886.13252974,0.00021655,2]
[312069365,1705596633552,-228.01747026,0.00021656,2]
[312069366,1705596633565,-2078.96088746,0.00021656,2]
[312069367,1705596633575,-3126.62522492,0.00021657,2]
[312069368,1705596633586,-7672.98518074,0.00021676,2]
[312069369,1705596633598,-150.0,0.00021753,2]
[312069370,1705596633608,-197.97478194,0.00021785,2]
[312069371,1705596633618,-212.1575122,0.00021785,2]
[312069372,1705596633629,-208.84882825,0.00021785,2]
[312069373,1705596633644,-198.21015724,0.00021785,2]
[312069374,1705596633655,-155.08480032,0.00021785,2]
[312069375,1705596633667,-844.80069332,0.00021785,2]
[312069376,1705596633678,-291.71338211,0.00021785,2]
[312069377,1705596633689,-607.83763069,0.00021785,2]
[312069378,1705596633700,-155.0,0.00021785,2]
[312069379,1705596633712,-532.13205427,0.00021785,2]
[312069380,1705596633723,-854.32637403,0.00021785,2]
[312069381,1705596633734,-300.0,0.00021814,2]
[312069382,1705596633746,-684.97,0.00021814,2]
[312069383,1705596633758,-278.57815345,0.00021818,2]
[312069384,1705596633770,-1566.50153356,0.00021818,2]
[312069385,1705596633781,-400.0,0.00021863,2]
[312069386,1705596633792,-500.0,0.00021863,2]
[312069387,1705596633803,-499.99,0.00021863,2]
[312069388,1705596633814,-288.24,0.00021863,2]
[312069389,1705596633825,-289.27730306,0.00021899,2]
[312069390,1705596633836,-129364.52515324,0.000219,2]
[312069391,1705596633847,-32405.00145493,0.000219,2]
[312069392,1705596633862,-587.5153374,0.000219,2]
[312069393,1705596633874,-8403.36000001,0.000219,2]
[312069395,1705596633893,-17987.63326578,0.000219,2]
[312069397,1705596633908,-10468.8,0.000219,2]
[312069399,1705596633921,-5765.55513152,0.000219,2]
[312069401,1705596633940,-479.70601001,0.000219,2]
[312069403,1705596633953,-1603.04621236,0.000219,2]
[312069408,1705596633990,-250.0,0.000219,2]
[312069411,1705596634021,-662.815,0.000219,2]
[312069413,1705596634035,-6309.94078843,0.000219,2]
[312069414,1705596634048,-1502.28437207,0.000219,2]
[312069415,1705596634074,-2933.4711,0.000219,2]
[312069416,1705596634103,-2365.25864744,0.000219,2]
[312069417,1705596634123,-532.8244694,0.000219,2]
[312069418,1705596634397,-2784.51649125,0.000219,2]
[312069419,1705596634409,-118392.24251757,0.000219,2]
[312069420,1705596634420,-443.83597126,0.000219,2]
[312069421,1705596634431,-333.92943009,0.000219,2]
[312069422,1705596634459,-5958.5,0.000219,2]
[312069423,1705596634470,-498.696,0.000219,2]
[312069424,1705596634482,-10452.50000001,0.000219,2]
[312069425,1705596634498,-968.45269273,0.000219,2]
[312069426,1705596634512,-1701.66568431,0.000219,2]
[312069427,1705596634523,-2743.8157371,0.000219,2]
[312069440,1705596637604,-5300.58217764,0.000219,2]
[312069441,1705596637621,-650.53838168,0.000219,2]
[312069442,1705596637633,-543.68032293,0.000219,2]
[312069443,1705596637649,-35613.69,0.000219,2]
[312069444,1705596637661,-250.0882,0.000219,2]
[312069445,1705596637673,-2853.91612875,0.000219,2]
[312069446,1705596637685,-1974.43544785,0.000219,2]
[312069447,1705596637697,-939.37899748,0.000219,2]
[312069448,1705596637708,-5995.74155673,0.000219,2]
[312069449,1705596637719,-8363.08098,0.000219,2]
[312069450,1705596637731,-2495.0,0.000219,2]
[312069451,1705596637975,-868.95680594,0.000219,2]
[312069452,1705596637986,-10499.16321223,0.000219,2]
[312069453,1705596637999,-529.82133345,0.000219,2]
[312069454,1705596638026,-131844.71347221,0.000219,2]
[312069455,1705596638096,-60455.98913836,0.000219,2]
[312069456,1705596638105,-250.0,0.00021918,2]
[312069457,1705596638114,-220.45,0.00021987,2]
[312069458,1705596638124,-550.0,0.00022,3]
[312069459,1705596638134,-3207.3814279,0.00022,2]
[312069460,1705596638148,-162.71,0.00022027,2]
[312069461,1705596638157,-1105.71640799,0.00022336,2]
[312069462,1705596638167,-250.0,0.00022374,2]
[312069463,1705596638177,-406.17,0.00022374,2]
[312069464,1705596638188,-1544.88488061,0.00022391,2]
[312069465,1705596638199,-668.65584611,0.00022392,2]
[312069466,1705596638209,-404.2638852,0.00022392,2]
[312069467,1705596638219,-245000.0,0.00022394,2]
[312069468,1705596638228,-151.39,0.00022436,2]
[312069469,1705596638238,-163.97646667,0.00022494,2]
[312069470,1705596638247,-318.71536209,0.00022494,2]
[312069471,1705596638257,-728.79,0.00022498,2]
[312069472,1705596638268,-731.88,0.000225,2]
[312069473,1705596638278,-729.22,0.000225,2]
[312069474,1705596638288,-719.78,0.000225,2]
[312069475,1705596638298,-12298.83057596,0.000225,2]
[312069476,1705596638307,-153.72,0.00022623,2]
[312069477,1705596638317,-155.4056809,0.00022766,2]
[312069478,1705596638326,-155.72027097,0.00022766,2]
[312069479,1705596638336,-500.0,0.00022816,2]
[312069480,1705596638346,-600.0,0.00022921,2]
[312069481,1705596638355,-157.04,0.00023174,2]
[312069482,1705596638365,-162.71,0.00023175,2]
[312069483,1705596638374,-153.72,0.00023189,2]
[312069484,1705596638384,-459.65,0.00023397,2]
[312069485,1705596638397,-151.39,0.0002349,2]
[312069486,1705596638406,-153.72,0.00023754,2]
[312069487,1705596638416,-500.0,0.00023884,2]
[312069488,1705596638426,-441.6266,0.00023927,2]
[312069489,1705596638435,-500.0,0.00023927,2]
[312069490,1705596638445,-489.6982,0.00023927,2]
[312069491,1705596638454,-431.53216335,0.00024,2]
[312069492,1705596638465,-600.0,0.00024,3]
[312069493,1705596638474,-201.13102968,0.00024,2]
[312069494,1705596638484,-176.3,0.00024,2]
[312069495,1705596638494,-18905.7828036,0.00024026,2]
[312069496,1705596638503,-235.6930786,0.0002403,2]
[312069497,1705596638517,-200.0,0.0002418,2]
[312069498,1705596638528,-459.65,0.00024224,2]
[312069499,1705596638537,-180.0,0.00024239,2]
[312069500,1705596638547,-220.45,0.0002425,2]
[312069501,1705596638561,-1566.50153355,0.00024258,2]
[312069502,1705596638570,-153.72,0.0002432,2]
[312069511,1705596638826,-200.0,0.00024422,2]
[312069512,1705596638837,-151.39,0.00024544,2]
[312069514,1705596638848,-176.3,0.00024548,2]
[312069517,1705596638858,-5000.0,0.00024584,2]
[312069520,1705596638869,-400.0,0.00024596,2]
[312069522,1705596638879,-800.0,0.0002463,2]
[312069524,1705596638890,-250.0,0.00024658,2]
[312069527,1705596638902,-153.72,0.00024885,2]
[312069529,1705596638912,-156.73183509,0.00024952,2]
[312069531,1705596638922,-500.0,0.00024952,2]
[312069532,1705596638931,-419.2730407,0.00024999,4]
[312069534,1705596638941,-500.0,0.00024999,4]
[312069537,1705596638951,-500.0,0.00024999,4]
[312069538,1705596638960,-500.0,0.00024999,4]
[312069540,1705596638971,-463.96247121,0.00024999,4]
[312069543,1705596638981,-500.0,0.00024999,4]
[312069545,1705596638991,-265.12610831,0.00024999,4]
[312069546,1705596639001,-436.97878846,0.00024999,4]
[312069548,1705596639011,-500.0,0.00024999,4]
[312069550,1705596639020,-446.14158397,0.00024999,4]
[312069553,1705596639031,-500.0,0.00024999,4]
[312069555,1705596639041,-500.0,0.00024999,4]
[312069557,1705596639051,-500.0,0.00024999,4]
[312069559,1705596639060,-500.0,0.00024999,4]
[312069561,1705596639073,-606.9103833,0.00024999,2]
[312069563,1705596639083,-500.0,0.00024999,2]
[312069565,1705596639092,-500.0,0.00024999,2]
[312069567,1705596639102,-489.19415369,0.00024999,2]
[312069569,1705596639111,-500.0,0.00024999,2]
[312069571,1705596639120,-500.0,0.00024999,2]
[312069573,1705596639130,-500.0,0.00024999,2]
[312069575,1705596639142,-268.32791396,0.00024999,2]
[312069577,1705596639151,-500.0,0.00024999,2]
[312069579,1705596639161,-500.0,0.00024999,2]
[312069581,1705596639170,-500.0,0.00024999,2]
[312069583,1705596639180,-500.0,0.00024999,2]
[312069585,1705596639190,-248.86870697,0.00024999,2]
[312069587,1705596639200,-500.0,0.00024999,2]
[312069589,1705596639210,-500.0,0.00024999,2]
[312069591,1705596639220,-500.0,0.00024999,2]
[312069593,1705596639230,-500.0,0.00024999,2]
[312069595,1705596639239,-500.0,0.00024999,2]
[312069597,1705596639249,-366.73345737,0.00024999,2]
[312069599,1705596639258,-500.0,0.00024999,2]
[312069601,1705596639268,-500.0,0.00024999,2]
[312069603,1705596639278,-68980.2898678,0.00025,3]
[312069605,1705596639291,-22421.00957323,0.00025,3]
[312069607,1705596639302,-23376.43700282,0.00025,3]
[312069610,1705596639312,-2785.94987732,0.00025,3]
[312069618,1705596639378,-7273.57199992,0.00025,3]
[312069620,1705596639389,-359.9266062,0.00025,3]
[312069622,1705596639402,-391.66913979,0.00025,3]
[312069624,1705596639413,-607.12377112,0.00025,3]
[312069626,1705596639425,-591.96346749,0.00025,3]
[312069629,1705596639435,-115149.94693358,0.00025,3]
[312069631,1705596639446,-1576.10650313,0.00025,3]
[312069633,1705596639457,-22237.10149999,0.00025,3]
[312069636,1705596639476,-402.12299413,0.00025,3]
[312069639,1705596639491,-13005.12856162,0.00025,3]
[312069641,1705596639507,-8648.80758099,0.00025,3]
[312069723,1705596640182,-2487.15021336,0.00025,3]
[312069733,1705596640225,-5344.0956279,0.00025,3]
[312069737,1705596640251,-2727.70465963,0.00025,3]
[312069746,1705596640320,-377.79217289,0.00025,3]
[312069747,1705596640331,-323.496336,0.00025,3]
[312069748,1705596640342,-673.84267153,0.00025,3]
[312069749,1705596640353,-8385.028,0.00025,3]
[312069750,1705596640367,-1024.0,0.00025,3]
[312069751,1705596640378,-339.4,0.00025,3]
[312069752,1705596640389,-2505.0024,0.00025,3]
[312069755,1705596640420,-1335.54313078,0.00025,3]
[312069758,1705596640431,-694.17637088,0.00025,3]
[312069761,1705596640457,-21000.0,0.00025,3]
[312069844,1705596641272,-1267440.48762665,0.00025,3]
[312069846,1705596641283,-242.41424352,0.00025,2]
[312069848,1705596641294,-714.59,0.00025,2]
[312069850,1705596641304,-933.68908946,0.00025,2]
[312069852,1705596641317,-158.67264273,0.00025,2]
[312069854,1705596641328,-302.84681763,0.00025,2]
[312069856,1705596641338,-1584.10702682,0.00025,2]
[312069858,1705596641349,-155.0,0.00025,2]
[312069861,1705596641359,-1248.38542045,0.00025,2]
[312069863,1705596641370,-167.05182833,0.00025,2]
[312069865,1705596641381,-86906.94759313,0.00025,2]
[312069867,1705596641397,-459.65,0.00025052,2]
[312069869,1705596641409,-350.59885641,0.00025096,2]
[312069870,1705596641424,-16009.97812848,0.00025098,2]
[312069872,1705596641435,-60635.3131,0.00025198,2]
[312069874,1705596641446,-19798.3865,0.00025198,2]
[312069876,1705596641457,-1010.76734501,0.00025295,2]
[312069878,1705596641468,-17759.77334659,0.00025296,2]
[312069881,1705596641480,-886.12612743,0.00025296,2]
[312069883,1705596641491,-155.0,0.00025296,2]
[312069885,1705596641502,-523.20663738,0.00025296,2]
[312069886,1705596641518,-155.0,0.00025296,2]
[312069889,1705596641530,-4154.76443991,0.00025297,2]
[312069890,1705596641541,-217.76361723,0.00025298,2]
[312069892,1705596641556,-1434.04271969,0.00025298,2]
[312069894,1705596641568,-286.33384578,0.00025298,2]
[312069897,1705596641579,-155.22664379,0.00025298,2]
[312069899,1705596641590,-2820.85793042,0.00025298,2]
[312069900,1705596641601,-155.0,0.00025298,2]
[312069902,1705596641613,-1135.27978758,0.00025298,2]
[312069904,1705596641624,-225.15297754,0.00025298,2]
[312069907,1705596641636,-235.12703746,0.00025298,2]
[312069909,1705596641653,-231.84627581,0.00025298,2]
[312069911,1705596641665,-306.18581609,0.00025299,2]
[312069913,1705596641676,-9755.1891471,0.00025299,2]
[312069915,1705596641687,-153.72,0.00025451,2]
[312069917,1705596641698,-151.39,0.00025597,2]
[312069919,1705596641708,-2730.0,0.000257,2]
[312069921,1705596641719,-600.0,0.00025787,2]
[312069922,1705596641734,-459.65,0.00025879,2]
[312069924,1705596641745,-5000.0,0.00026,2]
[312069926,1705596641756,-650.0,0.00026,3]
[312069927,1705596641767,-322.84503178,0.00026012,2]
[312069928,1705596641778,-1000.0,0.00026012,2]
[312069929,1705596641789,-153.72,0.00026017,2]
[312069930,1705596641799,-500.0,0.0002602,2]
[312069931,1705596641809,-16009.97812838,0.00026353,2]
[312069932,1705596641820,-446.60337711,0.00026399,2]
[312069933,1705596641831,-220.45,0.00026514,2]
[312069934,1705596641842,-150.0,0.00026524,2]
[312069935,1705596641852,-2439.83,0.00026575,2]
[312069936,1705596641862,-6730.18,0.00026575,2]
[312069937,1705596641873,-151.39,0.00026651,2]
[312069938,1705596641883,-1566.50153355,0.00026699,3]
[312069939,1705596641898,-289.41,0.000267,2]
[312069940,1705596641909,-459.65,0.00026707,2]
[312069941,1705596641919,-1138.0,0.00026876,2]
[312069942,1705596641929,-150.0,0.00026876,2]
[312069943,1705596641940,-150.0,0.00026876,2]
[312069945,1705596641950,-150.0,0.00026876,2]
[312069947,1705596641960,-150.0,0.00026876,2]
[312069949,1705596641971,-2248.22687977,0.00027,2]
[312069951,1705596641982,-500.0,0.00027088,2]
[312069953,1705596641992,-22355.93032834,0.00027099,2]
[312069955,1705596642003,-40000.0,0.000272,2]
[312069957,1705596642012,-168.12312928,0.00027297,2]
[312069959,1705596642021,-4428.66631367,0.00027297,2]
[312069961,1705596642031,-490.43865704,0.00027297,2]
[312069963,1705596642042,-214.00600724,0.00027297,13]
[312069965,1705596642051,-507.12349028,0.00027297,2]
[312069967,1705596642060,-400.0,0.00027329,2]
[312069970,1705596642086,-155.31524812,0.00027381,2]
[312069971,1705596642096,-872.22933145,0.00027381,2]
[312069974,1705596642107,-508.82347968,0.00027381,2]
[312069975,1705596642116,-179.85729111,0.00027381,2]
[312069978,1705596642126,-200.0,0.00027381,2]
[312069980,1705596642135,-623.51852664,0.00027381,2]
[312069982,1705596642151,-2000.0,0.00027381,2]
[312069984,1705596642162,-200.0,0.00027381,2]
[312069985,1705596642171,-2000.0,0.00027381,2]
[312069987,1705596642181,-200.0,0.00027381,2]
[312069988,1705596642191,-2000.0,0.00027381,2]
[312069989,1705596642203,-200.0,0.00027381,2]
[312069990,1705596642212,-58000.0,0.00027381,2]
[312069991,1705596642222,-58000.0,0.0002739,2]
[312069992,1705596642231,-5811.65,0.00027397,2]
[312069993,1705596642241,-5811.65,0.00027397,2]
[312069994,1705596642250,-5811.65,0.00027397,2]
[312069996,1705596642260,-5811.65,0.00027397,2]
[312069998,1705596642269,-5811.65,0.00027397,2]
[312069999,1705596642279,-5811.65,0.00027397,2]
[312070001,1705596642288,-5811.65,0.00027397,2]
[312070002,1705596642297,-5811.65,0.00027397,2]
[312070003,1705596642307,-5811.65,0.00027397,2]
[312070004,1705596642316,-5811.65,0.00027397,2]
[312070005,1705596642326,-4232.92,0.00027397,2]
[312070006,1705596642335,-680.44,0.00027397,2]
[312070007,1705596642345,-150.0,0.00027397,2]
[312070008,1705596642354,-530.0,0.00027397,2]
[312070009,1705596642364,-58000.0,0.00027399,2]
[312070010,1705596642373,-157.04,0.00027533,2]
[312070011,1705596642383,-459.65,0.00027534,2]
[312070013,1705596642401,-16009.97812838,0.00027607,2]
[312070015,1705596642410,-2000.0,0.00027655,2]
[312070017,1705596642419,-200.0,0.00027655,2]
[312070019,1705596642428,-2000.0,0.00027655,2]
[312070020,1705596642437,-200.0,0.00027655,2]
[312070021,1705596642447,-2000.0,0.00027655,2]
[312070023,1705596642456,-200.0,0.00027655,2]
[312070024,1705596642466,-151.39,0.00027705,2]
[312070025,1705596642475,-2000.0,0.00027931,2]
[312070026,1705596642485,-200.0,0.00027931,2]
[312070027,1705596642494,-2000.0,0.00027931,2]
[312070030,1705596642504,-200.0,0.00027931,2]
[312070032,1705596642518,-2000.0,0.00027931,2]
[312070034,1705596642527,-200.0,0.00027931,2]
[312070036,1705596642537,-500.0,0.00027977,2]
[312070038,1705596642547,-500.0,0.00027986,2]
[312070040,1705596642559,-500.0,0.00027995,2]
[312070042,1705596642568,-688.79473801,0.00028,2]
[312070044,1705596642577,-203.0550109,0.00028,2]
[312070046,1705596642588,-1543.59574515,0.00028,18]
[312070047,1705596642598,-700.0,0.00028,3]
[312070048,1705596642608,-183.53802334,0.00028,2]
[312070050,1705596642617,-500.0,0.00028004,2]
[312070053,1705596642628,-500.0,0.00028012,2]
[312070056,1705596642638,-500.0,0.00028021,2]
[312070058,1705596642652,-500.0,0.0002803,2]
[312070059,1705596642662,-2000.0,0.0002811,3]
[312070060,1705596642672,-150.0,0.00028118,2]
[312070062,1705596642681,-500.0,0.00028156,2]
[312070064,1705596642691,-58000.0,0.00028175,2]
[312070066,1705596642701,-58000.0,0.00028184,2]
[312070068,1705596642711,-58000.0,0.00028193,2]
[312070069,1705596642721,-58000.0,0.00028201,2]
[312070070,1705596642732,-58000.0,0.0002821,2]
[312070071,1705596642742,-58000.0,0.0002821,2]
[312070072,1705596642752,-2000.0,0.00028211,2]
[312070073,1705596642762,-200.0,0.00028211,2]
[312070074,1705596642772,-2000.0,0.00028211,2]
[312070075,1705596642782,-200.0,0.00028211,2]
[312070076,1705596642791,-2000.0,0.00028211,2]
[312070077,1705596642801,-200.0,0.00028211,2]
[312070078,1705596642810,-58000.0,0.00028219,2]
[312070079,1705596642820,-58000.0,0.00028219,2]
[312070080,1705596642830,-167.72,0.00028307,2]
[312070081,1705596642839,-275.0,0.00028352,7]
[312070082,1705596642848,-151.0,0.00028352,7]
[312070083,1705596642857,-151.0,0.00028352,7]
[312070084,1705596642867,-151.0,0.00028352,7]
[312070085,1705596642876,-151.0,0.00028352,7]
[312070086,1705596642885,-151.0,0.00028352,7]
[312070087,1705596642897,-151.0,0.00028352,7]
[312070088,1705596642906,-151.0,0.00028352,7]
[312070089,1705596642916,-151.0,0.00028352,7]
[312070090,1705596642925,-459.65,0.00028362,2]
[312070091,1705596642935,-200.0,0.00028441,3]
[312070092,1705596642944,-2000.0,0.00028493,2]
[312070093,1705596642954,-200.0,0.00028493,2]
[312070094,1705596642963,-2000.0,0.00028493,2]
[312070095,1705596642972,-200.0,0.00028493,2]
[312070096,1705596642982,-207.68498122,0.00028493,2]
[312070097,1705596642991,-200.0,0.00028493,2]
[312070098,1705596643001,-600.0,0.00028652,2]
[312070099,1705596643010,-3870.56641462,0.00028739,7]
[312070100,1705596643020,-1424.5834738,0.00028739,7]
[312070101,1705596643029,-195.72527415,0.00028739,7]
[312070102,1705596643040,-1097.69302714,0.00028739,7]
[312070103,1705596643049,-967.30197455,0.00028739,7]
[312070104,1705596643058,-4987.50944038,0.00028739,7]
[312070105,1705596643080,-1564.44451372,0.00028739,7]
[312070106,1705596643089,-1044.38567375,0.00028739,7]
[312070107,1705596643098,-444.62060255,0.00028739,4]
[312070108,1705596643108,-2329.63151294,0.00028756,7]
[312070109,1705596643118,-2208.69177,0.00028756,7]
[312070110,1705596643128,-1998.16794255,0.00028756,7]
[312070111,1705596643138,-151.39,0.00028759,2]
[312070112,1705596643150,-4232.92,0.00028767,2]
[312070113,1705596643160,-220.45,0.00028778,2]
[312070114,1705596643169,-150.0,0.00028839,2]
[312070115,1705596643178,-150.0,0.00028861,2]
[312070116,1705596643188,-150.0,0.00028861,2]
[312070117,1705596643197,-16009.97812838,0.00028862,2]
[312070118,1705596643207,-1885.53307975,0.00029,5]
[312070119,1705596643216,-150.0,0.00029,2]